[Event "Early-Titled-Tuesday-Blitz-March-19-2024"]
[Site "Chess.com"]
[Date "2024.03.19"]
[Round "8"]
[White "Viktoker"]
[Black "CarlosjPineror"]
[Result "0-1"]
[WhiteElo "2546"]
[BlackElo "2702"]
[TimeControl "180+1"]
[EndTime "9:30:48 PDT"]
[Termination "CarlosjPineror won on time"]

1. d4 {[%clk 0:02:58.2]} 1... Nf6 {[%clk 0:02:59.6]} 2. c4 {[%clk 0:02:55.2]}
2... e6 {[%clk 0:03:00]} 3. Nc3 {[%clk 0:02:54.6]} 3... Bb4 {[%clk 0:02:59.9]}
4. e3 {[%clk 0:02:54.7]} 4... O-O {[%clk 0:02:59.6]} 5. Bd3 {[%clk 0:02:54.7]}
5... Bxc3+ {[%clk 0:02:53]} 6. bxc3 {[%clk 0:02:54.7]} 6... d6 {[%clk
0:02:53.7]} 7. Nf3 {[%clk 0:02:52.6]} 7... Qe7 {[%clk 0:02:52.6]} 8. O-O {[%clk
0:02:50.2]} 8... e5 {[%clk 0:02:52.6]} 9. Nd2 {[%clk 0:02:49.4]} 9... c5 {[%clk
0:02:52.3]} 10. Qc2 {[%clk 0:02:47.1]} 10... b6 {[%clk 0:02:45.3]} 11. Re1
{[%clk 0:02:44]} 11... h6 {[%clk 0:02:32.6]} 12. Nf1 {[%clk 0:02:29.9]} 12...
Nc6 {[%clk 0:02:32.2]} 13. d5 {[%clk 0:02:27.3]} 13... Na5 {[%clk 0:02:24.9]}
14. Ng3 {[%clk 0:02:27.1]} 14... Re8 {[%clk 0:02:19]} 15. e4 {[%clk 0:02:17.1]}
15... Ba6 {[%clk 0:02:09.7]} 16. Qe2 {[%clk 0:02:16.6]} 16... Bc8 {[%clk
0:02:01.8]} 17. h3 {[%clk 0:02:13]} 17... Bd7 {[%clk 0:01:58.5]} 18. Bd2 {[%clk
0:02:09.3]} 18... Rf8 {[%clk 0:01:28.1]} 19. Rf1 {[%clk 0:02:08.6]} 19... Rae8
{[%clk 0:01:26.2]} 20. Rae1 {[%clk 0:02:08.4]} 20... Bc8 {[%clk 0:01:23.3]} 21.
Kh1 {[%clk 0:02:02.1]} 21... Qd8 {[%clk 0:01:16.1]} 22. Kg1 {[%clk 0:01:57.4]}
22... Nb7 {[%clk 0:00:58.2]} 23. Kh1 {[%clk 0:01:56.5]} 23... Bd7 {[%clk
0:00:55.8]} 24. f4 {[%clk 0:01:50.4]} 24... Nh7 {[%clk 0:00:37.7]} 25. fxe5
{[%clk 0:01:48.7]} 25... Rxe5 {[%clk 0:00:37.7]} 26. Bf4 {[%clk 0:01:48.3]}
26... Ree8 {[%clk 0:00:38.1]} 27. Qf2 {[%clk 0:01:41.9]} 27... f6 {[%clk
0:00:35.9]} 28. Nf5 {[%clk 0:01:35.3]} 28... Bxf5 {[%clk 0:00:30.1]} 29. exf5
{[%clk 0:01:36.2]} 29... Re5 {[%clk 0:00:25]} 30. Bxe5 {[%clk 0:01:35]} 30...
dxe5 {[%clk 0:00:25.9]} 31. d6 {[%clk 0:01:31]} 31... Nxd6 {[%clk 0:00:26.1]}
32. Qf3 {[%clk 0:01:23.6]} 32... Ng5 {[%clk 0:00:21.4]} 33. Qd5+ {[%clk
0:01:23.9]} 33... Ngf7 {[%clk 0:00:21.4]} 34. Rd1 {[%clk 0:01:22.2]} 34... Qc7
{[%clk 0:00:21.3]} 35. Be4 {[%clk 0:01:16.6]} 35... Rd8 {[%clk 0:00:20.3]} 36.
Qe6 {[%clk 0:01:15.4]} 36... Kf8 {[%clk 0:00:18.2]} 37. Bf3 {[%clk 0:01:13]}
37... Re8 {[%clk 0:00:18.1]} 38. Qd5 {[%clk 0:01:13]} 38... Rd8 {[%clk
0:00:18.2]} 39. Qe6 {[%clk 0:01:09.7]} 39... Re8 {[%clk 0:00:18.4]} 40. Qd5
{[%clk 0:01:09.7]} 40... Nxf5 {[%clk 0:00:19.1]} 41. Rfe1 {[%clk 0:00:50.6]}
41... Rd8 {[%clk 0:00:14.4]} 42. Qe6 {[%clk 0:00:44.9]} 42... N5d6 {[%clk
0:00:12.3]} 43. Bd5 {[%clk 0:00:42.9]} 43... Qe7 {[%clk 0:00:11.9]} 44. Qg4
{[%clk 0:00:42.4]} 44... f5 {[%clk 0:00:08.5]} 45. Qg6 {[%clk 0:00:42.4]} 45...
Qf6 {[%clk 0:00:08.5]} 46. Qg3 {[%clk 0:00:41]} 46... e4 {[%clk 0:00:08.4]} 47.
Rf1 {[%clk 0:00:39.8]} 47... g6 {[%clk 0:00:08.5]} 48. Rde1 {[%clk 0:00:37.4]}
48... Kg7 {[%clk 0:00:08.1]} 49. Bxe4 {[%clk 0:00:36.6]} 49... Nxe4 {[%clk
0:00:06.4]} 50. Rxe4 {[%clk 0:00:36.6]} 50... Qd6 {[%clk 0:00:06]} 51. Ref4
{[%clk 0:00:35.1]} 51... g5 {[%clk 0:00:04.7]} 52. h4 {[%clk 0:00:26.2]} 52...
Rh8 {[%clk 0:00:03.2]} 53. Kg1 {[%clk 0:00:22.6]} 53... Re8 {[%clk 0:00:02.9]}
54. hxg5 {[%clk 0:00:20.6]} 54... hxg5 {[%clk 0:00:03.8]} 55. R4f3 {[%clk
0:00:13]} 55... Qxg3 {[%clk 0:00:03]} 56. Rxg3 {[%clk 0:00:13.9]} 56... Kg6
{[%clk 0:00:03.5]} 57. Rd3 {[%clk 0:00:14]} 57... Re6 {[%clk 0:00:03.3]} 58. Rd7
{[%clk 0:00:14.2]} 58... Ne5 {[%clk 0:00:03.3]} 59. Rxa7 {[%clk 0:00:14.3]}
59... Nxc4 {[%clk 0:00:04]} 60. Rb7 {[%clk 0:00:14.3]} 60... f4 {[%clk
0:00:03.7]} 61. a4 {[%clk 0:00:14.2]} 61... Kf5 {[%clk 0:00:04]} 62. Rf7+ {[%clk
0:00:12.6]} 62... Kg4 {[%clk 0:00:03.6]} 63. Rd1 {[%clk 0:00:10.2]} 63... Re2
{[%clk 0:00:04]} 64. Rg7 {[%clk 0:00:09.8]} 64... Ne3 {[%clk 0:00:04.1]} 65. Rd6
{[%clk 0:00:08.4]} 65... Rxg2+ {[%clk 0:00:04.5]} 66. Kh1 {[%clk 0:00:09]} 66...
Kf3 {[%clk 0:00:04.1]} 67. Rdg6 {[%clk 0:00:06.6]} 67... g4 {[%clk 0:00:04.1]}
68. Rf7 {[%clk 0:00:05.7]} 68... g3 {[%clk 0:00:04.6]} 69. Rgf6 {[%clk
0:00:05.3]} 69... Rh2+ {[%clk 0:00:04.6]} 70. Kg1 {[%clk 0:00:05.3]} 70... Ng2
{[%clk 0:00:04.7]} 71. Rd7 {[%clk 0:00:02.3]} 71... Rh5 {[%clk 0:00:03.4]} 72.
Rd3+ {[%clk 0:00:02]} 72... Ne3 {[%clk 0:00:04.1]} 0-1

[Event "Early-Titled-Tuesday-Blitz-March-19-2024"]
[Site "Chess.com"]
[Date "2024.03.19"]
[Round "8"]
[White "Matols"]
[Black "GreenPeach24"]
[Result "0-1"]
[WhiteElo "2359"]
[BlackElo "2563"]
[TimeControl "180+1"]
[EndTime "9:30:48 PDT"]
[Termination "GreenPeach24 won on time"]

1. d4 {[%clk 0:03:00]} 1... Nf6 {[%clk 0:02:59.5]} 2. c4 {[%clk 0:02:59.4]} 2...
e6 {[%clk 0:02:59.3]} 3. g3 {[%clk 0:02:59.2]} 3... d5 {[%clk 0:02:58.8]} 4. Nf3
{[%clk 0:02:58.8]} 4... Be7 {[%clk 0:02:58.8]} 5. Bg2 {[%clk 0:02:59.1]} 5...
O-O {[%clk 0:02:59.2]} 6. O-O {[%clk 0:02:59.6]} 6... c6 {[%clk 0:02:59]} 7. Qc2
{[%clk 0:02:59]} 7... b6 {[%clk 0:02:58.7]} 8. Nbd2 {[%clk 0:02:58.6]} 8... Bb7
{[%clk 0:02:58.6]} 9. e4 {[%clk 0:02:59]} 9... dxe4 {[%clk 0:02:57]} 10. Nxe4
{[%clk 0:02:59.9]} 10... Nbd7 {[%clk 0:02:56.6]} 11. Rd1 {[%clk 0:02:58.1]}
11... Nxe4 {[%clk 0:02:40.4]} 12. Qxe4 {[%clk 0:02:59]} 12... Nf6 {[%clk
0:02:40.7]} 13. Qc2 {[%clk 0:02:58.7]} 13... Qc8 {[%clk 0:02:40.5]} 14. c5
{[%clk 0:02:58.3]} 14... Rd8 {[%clk 0:02:33.5]} 15. Bf4 {[%clk 0:02:55.4]} 15...
Nd5 {[%clk 0:02:31.8]} 16. Bd2 {[%clk 0:02:51.3]} 16... Ba6 {[%clk 0:02:19.3]}
17. b4 {[%clk 0:02:47.2]} 17... bxc5 {[%clk 0:02:12.5]} 18. bxc5 {[%clk
0:02:45.9]} 18... Bf6 {[%clk 0:02:04.8]} 19. Bg5 {[%clk 0:02:39.4]} 19... Bxg5
{[%clk 0:01:59.7]} 20. Nxg5 {[%clk 0:02:40.3]} 20... Nf6 {[%clk 0:01:57.4]} 21.
h4 {[%clk 0:02:34.1]} 21... Qc7 {[%clk 0:01:47.2]} 22. Nf3 {[%clk 0:02:06.7]}
22... Rab8 {[%clk 0:01:43.8]} 23. Ne5 {[%clk 0:02:02.4]} 23... Nd5 {[%clk
0:01:43.4]} 24. Be4 {[%clk 0:01:58.9]} 24... h6 {[%clk 0:01:39.8]} 25. Rab1
{[%clk 0:01:45]} 25... Bb5 {[%clk 0:01:15.1]} 26. h5 {[%clk 0:01:32.7]} 26... a5
{[%clk 0:01:11.2]} 27. Rbc1 {[%clk 0:01:18.2]} 27... Nb4 {[%clk 0:01:08]} 28.
Qd2 {[%clk 0:01:08.7]} 28... Ba4 {[%clk 0:01:00.8]} 29. Bb1 {[%clk 0:00:59.7]}
29... Bxd1 {[%clk 0:00:51]} 30. Rxd1 {[%clk 0:01:00.6]} 30... Qxe5 {[%clk
0:00:36.7]} 31. dxe5 {[%clk 0:00:50]} 31... Rxd2 {[%clk 0:00:36.5]} 32. Rxd2
{[%clk 0:00:50.9]} 32... Nd5 {[%clk 0:00:35]} 33. Be4 {[%clk 0:00:48.9]} 33...
Kf8 {[%clk 0:00:25]} 34. f4 {[%clk 0:00:45.4]} 34... Ke7 {[%clk 0:00:24.6]} 35.
Kf2 {[%clk 0:00:42.1]} 35... Kd7 {[%clk 0:00:24]} 36. Kf3 {[%clk 0:00:36.3]}
36... Rb4 {[%clk 0:00:23.5]} 37. g4 {[%clk 0:00:33.1]} 37... Rc4 {[%clk
0:00:19.9]} 38. g5 {[%clk 0:00:31.5]} 38... Rc3+ {[%clk 0:00:18.8]} 39. Kg2
{[%clk 0:00:20]} 39... Ke7 {[%clk 0:00:15.4]} 40. Bxd5 {[%clk 0:00:15.2]} 40...
cxd5 {[%clk 0:00:15.6]} 41. Rb2 {[%clk 0:00:11.9]} 41... Rxc5 {[%clk 0:00:15.3]}
42. Rb7+ {[%clk 0:00:11.4]} 42... Ke8 {[%clk 0:00:15.5]} 43. Rb8+ {[%clk
0:00:11.1]} 43... Kd7 {[%clk 0:00:14.5]} 44. Rg8 {[%clk 0:00:04.6]} 44... hxg5
{[%clk 0:00:12]} 45. fxg5 {[%clk 0:00:05.4]} 45... Ke7 {[%clk 0:00:08.8]} 46.
Rxg7 {[%clk 0:00:05.4]} 46... Kf8 {[%clk 0:00:08.9]} 47. h6 {[%clk 0:00:05.3]}
47... Rc4 {[%clk 0:00:08]} 48. Kf3 {[%clk 0:00:04.3]} 48... Rh4 {[%clk
0:00:07.6]} 49. g6 {[%clk 0:00:03.4]} 49... fxg6 {[%clk 0:00:03.8]} 50. Rxg6
{[%clk 0:00:04.3]} 50... Kf7 {[%clk 0:00:03.6]} 51. Rf6+ {[%clk 0:00:04.6]}
51... Ke7 {[%clk 0:00:03.8]} 52. Kg3 {[%clk 0:00:04.1]} 52... Rh1 {[%clk
0:00:03.8]} 53. Kg2 {[%clk 0:00:03.8]} 53... Rh5 {[%clk 0:00:04.3]} 54. Kg3
{[%clk 0:00:03.7]} 54... Rxe5 {[%clk 0:00:04.2]} 55. Rg6 {[%clk 0:00:04]} 55...
Rh5 {[%clk 0:00:04.2]} 56. Kg4 {[%clk 0:00:04.4]} 56... Rh1 {[%clk 0:00:03.7]}
57. Rg7+ {[%clk 0:00:04.6]} 57... Kf6 {[%clk 0:00:04]} 58. Ra7 {[%clk
0:00:03.4]} 58... Rxh6 {[%clk 0:00:03.5]} 59. Rxa5 {[%clk 0:00:03.8]} 59... Rh2
{[%clk 0:00:04.2]} 60. Ra8 {[%clk 0:00:03.1]} 60... Ke5 {[%clk 0:00:04.4]} 61.
a4 {[%clk 0:00:02.9]} 61... Ra2 {[%clk 0:00:04.5]} 62. Kf3 {[%clk 0:00:02.9]}
62... Kd4 {[%clk 0:00:04.4]} 63. a5 {[%clk 0:00:02.9]} 63... e5 {[%clk
0:00:04.8]} 64. a6 {[%clk 0:00:03]} 64... e4+ {[%clk 0:00:05.3]} 65. Kg3 {[%clk
0:00:03.1]} 65... Ke3 {[%clk 0:00:05.4]} 66. Rd8 {[%clk 0:00:02.6]} 66... d4
{[%clk 0:00:05.6]} 67. Rd6 {[%clk 0:00:02.6]} 67... d3 {[%clk 0:00:05.7]} 68.
Kg4 {[%clk 0:00:01.7]} 68... Ke2 {[%clk 0:00:05]} 69. Kf4 {[%clk 0:00:01.6]}
69... Ra4 {[%clk 0:00:03]} 0-1

[Event "Early-Titled-Tuesday-Blitz-March-19-2024"]
[Site "Chess.com"]
[Date "2024.03.19"]
[Round "8"]
[White "valeriocarnicelli"]
[Black "AlexTruskavetsky"]
[Result "1/2-1/2"]
[WhiteElo "2551"]
[BlackElo "2686"]
[TimeControl "180+1"]
[EndTime "9:30:54 PDT"]
[Termination "Game drawn - insufficient material"]

1. e4 {[%clk 0:03:00.9]} 1... c5 {[%clk 0:03:00.1]} 2. Nf3 {[%clk 0:03:00.9]}
2... Nc6 {[%clk 0:03:00.5]} 3. d4 {[%clk 0:03:01.2]} 3... cxd4 {[%clk
0:03:00.8]} 4. Nxd4 {[%clk 0:03:02.1]} 4... Nf6 {[%clk 0:03:01]} 5. Nc3 {[%clk
0:03:02.7]} 5... e6 {[%clk 0:03:01.3]} 6. Ndb5 {[%clk 0:03:02.2]} 6... d6 {[%clk
0:03:00.5]} 7. Bf4 {[%clk 0:03:02.4]} 7... e5 {[%clk 0:03:00.8]} 8. Bg5 {[%clk
0:03:03.1]} 8... a6 {[%clk 0:03:01.4]} 9. Na3 {[%clk 0:03:03.3]} 9... b5 {[%clk
0:03:02.1]} 10. Nd5 {[%clk 0:03:03.8]} 10... Be7 {[%clk 0:03:02.8]} 11. Bxf6
{[%clk 0:03:04.4]} 11... Bxf6 {[%clk 0:03:02.1]} 12. c3 {[%clk 0:03:05.3]} 12...
O-O {[%clk 0:03:02.3]} 13. Nc2 {[%clk 0:03:06]} 13... Bg5 {[%clk 0:03:01.8]} 14.
a4 {[%clk 0:03:03.4]} 14... Rb8 {[%clk 0:03:01.1]} 15. axb5 {[%clk 0:03:03]}
15... axb5 {[%clk 0:03:02]} 16. b4 {[%clk 0:03:02.9]} 16... Be6 {[%clk
0:02:59.8]} 17. Nce3 {[%clk 0:03:03]} 17... Ne7 {[%clk 0:02:58.7]} 18. Nxe7+
{[%clk 0:02:56.4]} 18... Qxe7 {[%clk 0:02:55.8]} 19. Qd3 {[%clk 0:02:36.2]}
19... Bxe3 {[%clk 0:02:52.4]} 20. Qxe3 {[%clk 0:02:35.3]} 20... d5 {[%clk
0:02:52.3]} 21. exd5 {[%clk 0:02:15]} 21... Bxd5 {[%clk 0:02:53.2]} 22. Bd3
{[%clk 0:02:13.4]} 22... Bxg2 {[%clk 0:02:16.2]} 23. Rg1 {[%clk 0:02:13.6]}
23... Bd5 {[%clk 0:02:15.8]} 24. Ra7 {[%clk 0:02:00.6]} 24... Qf6 {[%clk
0:02:11.5]} 25. Qg5 {[%clk 0:01:45.8]} 25... Qxg5 {[%clk 0:01:48.4]} 26. Rxg5
{[%clk 0:01:46.7]} 26... Rfe8 {[%clk 0:01:48.2]} 27. Kd2 {[%clk 0:01:43.4]}
27... h6 {[%clk 0:01:23.9]} 28. Rg1 {[%clk 0:01:42.6]} 28... e4 {[%clk
0:01:20.8]} 29. Be2 {[%clk 0:01:39.8]} 29... Red8 {[%clk 0:01:19.8]} 30. Ke3
{[%clk 0:01:39.1]} 30... Rbc8 {[%clk 0:01:19.8]} 31. Rc1 {[%clk 0:01:37.6]}
31... Bc4 {[%clk 0:01:19.7]} 32. Rb7 {[%clk 0:01:22.9]} 32... Bxe2 {[%clk
0:01:05.7]} 33. Kxe2 {[%clk 0:01:23.8]} 33... Rd3 {[%clk 0:01:06]} 34. Rxb5
{[%clk 0:01:17.9]} 34... Rcxc3 {[%clk 0:01:04.4]} 35. Rxc3 {[%clk 0:01:04.6]}
35... Rxc3 {[%clk 0:01:05.3]} 36. Rc5 {[%clk 0:00:49.7]} 36... Rb3 {[%clk
0:01:04.6]} 37. Rc4 {[%clk 0:00:49.6]} 37... f5 {[%clk 0:01:03.9]} 38. Kd2
{[%clk 0:00:49.1]} 38... Rb2+ {[%clk 0:01:02.9]} 39. Ke3 {[%clk 0:00:47.9]}
39... Kh7 {[%clk 0:00:57.9]} 40. h4 {[%clk 0:00:45.3]} 40... Kg6 {[%clk
0:00:56.3]} 41. Rd4 {[%clk 0:00:44.4]} 41... Kh5 {[%clk 0:00:54.2]} 42. Rd5
{[%clk 0:00:44.9]} 42... g6 {[%clk 0:00:52.3]} 43. b5 {[%clk 0:00:44]} 43...
Kxh4 {[%clk 0:00:52.2]} 44. Rd6 {[%clk 0:00:43.6]} 44... Kg5 {[%clk 0:00:45.5]}
45. Rb6 {[%clk 0:00:43.4]} 45... h5 {[%clk 0:00:42.8]} 46. Rb8 {[%clk
0:00:43.6]} 46... h4 {[%clk 0:00:42.3]} 47. b6 {[%clk 0:00:42.7]} 47... h3
{[%clk 0:00:42.3]} 48. b7 {[%clk 0:00:41.8]} 48... h2 {[%clk 0:00:41.3]} 49. Rh8
{[%clk 0:00:41.8]} 49... Rxb7 {[%clk 0:00:41.1]} 50. Rxh2 {[%clk 0:00:42.5]}
50... Rb3+ {[%clk 0:00:40.5]} 51. Ke2 {[%clk 0:00:42.5]} 51... Kf4 {[%clk
0:00:40.9]} 52. Rh4+ {[%clk 0:00:42.4]} 52... Ke5 {[%clk 0:00:41.3]} 53. Rh8
{[%clk 0:00:42.6]} 53... g5 {[%clk 0:00:41.1]} 54. Kf1 {[%clk 0:00:39.6]} 54...
Kf4 {[%clk 0:00:39.5]} 55. Kg2 {[%clk 0:00:40]} 55... Rb2 {[%clk 0:00:39.9]} 56.
Rh3 {[%clk 0:00:40.2]} 56... g4 {[%clk 0:00:39.5]} 57. Rc3 {[%clk 0:00:40]}
57... Re2 {[%clk 0:00:38]} 58. Kf1 {[%clk 0:00:38]} 58... Rd2 {[%clk 0:00:38]}
59. Kg2 {[%clk 0:00:38]} 59... Rd3 {[%clk 0:00:38.1]} 60. Rc5 {[%clk 0:00:34.6]}
60... e3 {[%clk 0:00:36.6]} 61. Rc4+ {[%clk 0:00:30.7]} 61... Kg5 {[%clk
0:00:36.4]} 62. f4+ {[%clk 0:00:29.3]} 62... Kh4 {[%clk 0:00:36.2]} 63. Kf1
{[%clk 0:00:28.6]} 63... Kg3 {[%clk 0:00:35.8]} 64. Ke2 {[%clk 0:00:28.7]} 64...
Ra3 {[%clk 0:00:32.5]} 65. Rb4 {[%clk 0:00:28.9]} 65... Kg2 {[%clk 0:00:27.8]}
66. Rb5 {[%clk 0:00:29.3]} 66... g3 {[%clk 0:00:25.9]} 67. Rxf5 {[%clk
0:00:29.7]} 67... Kg1 {[%clk 0:00:24.5]} 68. Rg5 {[%clk 0:00:29.1]} 68... Ra2+
{[%clk 0:00:23.6]} 69. Kxe3 {[%clk 0:00:28.8]} 69... g2 {[%clk 0:00:23.6]} 70.
f5 {[%clk 0:00:29.3]} 70... Kf1 {[%clk 0:00:23.5]} 71. Ke4 {[%clk 0:00:25.2]}
71... Ra5 {[%clk 0:00:17.5]} 72. Rg8 {[%clk 0:00:17.1]} 72... Kf2 {[%clk
0:00:09.4]} 73. f6 {[%clk 0:00:15.1]} 73... Ra3 {[%clk 0:00:08.8]} 74. f7 {[%clk
0:00:11.9]} 74... Re3+ {[%clk 0:00:05.7]} 75. Kd4 {[%clk 0:00:09.7]} 75... Rf3
{[%clk 0:00:05.3]} 76. f8=Q {[%clk 0:00:09.8]} 76... Rxf8 {[%clk 0:00:05.3]} 77.
Rxf8+ {[%clk 0:00:10.3]} 77... Ke2 {[%clk 0:00:05.8]} 78. Rg8 {[%clk 0:00:10.1]}
78... Kf2 {[%clk 0:00:06.3]} 79. Ke4 {[%clk 0:00:09.5]} 79... g1=R {[%clk
0:00:04.7]} 80. Rxg1 {[%clk 0:00:09.2]} 80... Kxg1 {[%clk 0:00:05]} 1/2-1/2

[Event "Early-Titled-Tuesday-Blitz-March-19-2024"]
[Site "Chess.com"]
[Date "2024.03.19"]
[Round "8"]
[White "FMVolodymyrSakun"]
[Black "esrosenberg"]
[Result "1-0"]
[WhiteElo "2636"]
[BlackElo "2470"]
[TimeControl "180+1"]
[EndTime "9:30:59 PDT"]
[Termination "FMVolodymyrSakun won on time"]

1. d4 {[%clk 0:03:00.9]} 1... d5 {[%clk 0:03:00]} 2. Nf3 {[%clk 0:03:01]} 2...
Bf5 {[%clk 0:03:00]} 3. c4 {[%clk 0:02:59.5]} 3... e6 {[%clk 0:03:00.3]} 4. Nc3
{[%clk 0:02:59.1]} 4... Nf6 {[%clk 0:03:00.3]} 5. Bg5 {[%clk 0:02:52.1]} 5... c6
{[%clk 0:02:57.4]} 6. e3 {[%clk 0:02:51.1]} 6... Be7 {[%clk 0:02:53.8]} 7. Be2
{[%clk 0:02:46.2]} 7... O-O {[%clk 0:02:53.4]} 8. Nh4 {[%clk 0:02:42.6]} 8...
Ne4 {[%clk 0:02:46.1]} 9. Bxe7 {[%clk 0:02:39.9]} 9... Qxe7 {[%clk 0:02:46.1]}
10. Nxf5 {[%clk 0:02:40.3]} 10... exf5 {[%clk 0:02:46.4]} 11. cxd5 {[%clk
0:02:39]} 11... Nxc3 {[%clk 0:02:31.6]} 12. bxc3 {[%clk 0:02:39.9]} 12... cxd5
{[%clk 0:02:26]} 13. O-O {[%clk 0:02:30.8]} 13... Rc8 {[%clk 0:02:22.8]} 14. Qb3
{[%clk 0:02:17.7]} 14... f4 {[%clk 0:02:00.6]} 15. Bf3 {[%clk 0:02:17.2]} 15...
fxe3 {[%clk 0:01:58.5]} 16. Bxd5 {[%clk 0:02:12.1]} 16... e2 {[%clk 0:01:44.5]}
17. Rfe1 {[%clk 0:02:09.8]} 17... Nc6 {[%clk 0:01:44.6]} 18. Bf3 {[%clk
0:02:04.9]} 18... Na5 {[%clk 0:01:38.6]} 19. Qb2 {[%clk 0:01:51.4]} 19... Qc7
{[%clk 0:01:27.5]} 20. Rac1 {[%clk 0:01:48.9]} 20... Nc4 {[%clk 0:01:13.6]} 21.
Qxe2 {[%clk 0:01:48.4]} 21... Rab8 {[%clk 0:01:13.2]} 22. g3 {[%clk 0:01:34.5]}
22... b5 {[%clk 0:01:09.4]} 23. Kg2 {[%clk 0:01:26.7]} 23... g6 {[%clk
0:01:07.9]} 24. h4 {[%clk 0:01:16.4]} 24... h5 {[%clk 0:01:07]} 25. Qd3 {[%clk
0:01:06.3]} 25... Kg7 {[%clk 0:01:05]} 26. Re2 {[%clk 0:01:05.6]} 26... Rd8
{[%clk 0:01:04.7]} 27. Rce1 {[%clk 0:01:04.5]} 27... Rd7 {[%clk 0:01:04.9]} 28.
d5 {[%clk 0:01:00.4]} 28... Qc5 {[%clk 0:01:00.1]} 29. Re8 {[%clk 0:00:56.4]}
29... Rxe8 {[%clk 0:00:57.1]} 30. Rxe8 {[%clk 0:00:57.3]} 30... Nd6 {[%clk
0:00:53.1]} 31. Re2 {[%clk 0:00:48.3]} 31... Nc4 {[%clk 0:00:48.7]} 32. Re1
{[%clk 0:00:33.5]} 32... a6 {[%clk 0:00:45.6]} 33. Qe2 {[%clk 0:00:33.1]} 33...
Qd6 {[%clk 0:00:42.2]} 34. Qd1 {[%clk 0:00:29.4]} 34... Qf6 {[%clk 0:00:35.5]}
35. Qd3 {[%clk 0:00:20.7]} 35... Ne5 {[%clk 0:00:34.1]} 36. Qe4 {[%clk
0:00:17.8]} 36... Nxf3 {[%clk 0:00:33.8]} 37. Qxf3 {[%clk 0:00:18.1]} 37...
Qxf3+ {[%clk 0:00:32.9]} 38. Kxf3 {[%clk 0:00:19]} 38... Rxd5 {[%clk 0:00:33.5]}
39. Re3 {[%clk 0:00:08.4]} 39... Kf6 {[%clk 0:00:33.5]} 40. Ke2 {[%clk
0:00:07.9]} 40... a5 {[%clk 0:00:31.6]} 41. a3 {[%clk 0:00:07.2]} 41... Rc5
{[%clk 0:00:27.9]} 42. Kd3 {[%clk 0:00:07.1]} 42... Rc4 {[%clk 0:00:28.4]} 43.
Rf3+ {[%clk 0:00:07.1]} 43... Ke6 {[%clk 0:00:28.2]} 44. Kc2 {[%clk 0:00:06.9]}
44... Re4 {[%clk 0:00:18.6]} 45. Kd3 {[%clk 0:00:06.6]} 45... Re1 {[%clk
0:00:18.2]} 46. Kc2 {[%clk 0:00:06]} 46... f6 {[%clk 0:00:14.2]} 47. Kb3 {[%clk
0:00:05.4]} 47... g5 {[%clk 0:00:13.5]} 48. hxg5 {[%clk 0:00:03.4]} 48... fxg5
{[%clk 0:00:13.8]} 49. Rf8 {[%clk 0:00:03.6]} 49... Rf1 {[%clk 0:00:10.6]} 50.
Rh8 {[%clk 0:00:02.7]} 50... Rxf2 {[%clk 0:00:09.7]} 51. Rxh5 {[%clk 0:00:02.9]}
51... Kf5 {[%clk 0:00:10.1]} 52. Rh7 {[%clk 0:00:02.6]} 52... Kg4 {[%clk
0:00:09.7]} 53. Rb7 {[%clk 0:00:02.8]} 53... a4+ {[%clk 0:00:08.5]} 54. Kb4
{[%clk 0:00:03.1]} 54... Rb2+ {[%clk 0:00:08.6]} 55. Kc5 {[%clk 0:00:02.8]}
55... Kxg3 {[%clk 0:00:09]} 56. Rxb5 {[%clk 0:00:03.1]} 56... Rxb5+ {[%clk
0:00:09.2]} 57. Kxb5 {[%clk 0:00:04]} 57... Kf2 {[%clk 0:00:06.9]} 58. c4 {[%clk
0:00:04.9]} 58... g4 {[%clk 0:00:07.3]} 59. c5 {[%clk 0:00:05.5]} 59... g3
{[%clk 0:00:08.1]} 60. c6 {[%clk 0:00:06.1]} 60... g2 {[%clk 0:00:08.9]} 61. c7
{[%clk 0:00:07]} 61... g1=Q {[%clk 0:00:09.2]} 62. c8=Q {[%clk 0:00:07.4]} 62...
Qb1+ {[%clk 0:00:06.9]} 63. Kxa4 {[%clk 0:00:06.8]} 63... Qd1+ {[%clk
0:00:07.2]} 64. Kb4 {[%clk 0:00:06]} 64... Qb1+ {[%clk 0:00:07]} 65. Ka5 {[%clk
0:00:06]} 65... Qb3 {[%clk 0:00:05]} 66. Qf8+ {[%clk 0:00:04.3]} 66... Ke3
{[%clk 0:00:04.5]} 67. Qb4 {[%clk 0:00:04.2]} 67... Qd5+ {[%clk 0:00:04.3]} 68.
Kb6 {[%clk 0:00:04.2]} 68... Qd8+ {[%clk 0:00:03.4]} 69. Kb5 {[%clk 0:00:04]}
69... Qb8+ {[%clk 0:00:03.6]} 70. Ka5 {[%clk 0:00:04.1]} 70... Qa7+ {[%clk
0:00:03.5]} 71. Kb5 {[%clk 0:00:04.1]} 71... Qb7+ {[%clk 0:00:04]} 72. Kc5
{[%clk 0:00:04.4]} 72... Qc7+ {[%clk 0:00:03.5]} 73. Kd5 {[%clk 0:00:04.7]}
73... Qd7+ {[%clk 0:00:03.3]} 74. Qd6 {[%clk 0:00:04.1]} 74... Qa4 {[%clk
0:00:02]} 75. Qc5+ {[%clk 0:00:03.9]} 75... Kd3 {[%clk 0:00:01.8]} 76. Qb4
{[%clk 0:00:03.6]} 1-0